[Event "*** Titled Tuesday Blitz"]
[Site "Chess.com"]
[Date "2020.05.19"]
[Round "2"]
[White "Maksimus1998"]
[Black "swayamsm"]
[Result "1-0"]
[WhiteElo "2438"]
[BlackElo "2648"]
[TimeControl "180+1"]
[EndTime "12:19:34 PDT"]
[Termination "Maksimus1998 won by resignation"]

1. c4 {[%clk 0:03:00.9]} 1... e6 {[%clk 0:02:56.7]} 2. Nc3 {[%clk 0:03:00.5]}
2... d5 {[%clk 0:02:50.8]} 3. d4 {[%clk 0:03:00.1]} 3... Nf6 {[%clk 0:02:50.2]}
4. cxd5 {[%clk 0:02:58.9]} 4... exd5 {[%clk 0:02:42.2]} 5. Bg5 {[%clk
0:02:58.1]} 5... Bb4 {[%clk 0:02:38.1]} 6. e3 {[%clk 0:02:52.6]} 6... h6 {[%clk
0:02:34.1]} 7. Bh4 {[%clk 0:02:43.7]} 7... c5 {[%clk 0:02:30.9]} 8. dxc5 {[%clk
0:02:29.1]} 8... Nc6 {[%clk 0:02:20]} 9. Bb5 {[%clk 0:02:16.6]} 9... g5 {[%clk
0:02:14.5]} 10. Bg3 {[%clk 0:02:16]} 10... Ne4 {[%clk 0:02:12.5]} 11. Ne2 {[%clk
0:02:16.2]} 11... Qa5 {[%clk 0:02:00.3]} 12. O-O {[%clk 0:02:04.8]} 12... Bxc3
{[%clk 0:01:57.9]} 13. Nxc3 {[%clk 0:01:48.6]} 13... Nxc3 {[%clk 0:01:51.6]} 14.
Bxc6+ {[%clk 0:01:43.6]} 14... bxc6 {[%clk 0:01:52.5]} 15. bxc3 {[%clk
0:01:44.2]} 15... Qxc5 {[%clk 0:01:48.3]} 16. Be5 {[%clk 0:01:42.4]} 16... O-O
{[%clk 0:01:40.6]} 17. Qh5 {[%clk 0:01:36.9]} 17... Kh7 {[%clk 0:01:36.7]} 18.
h4 {[%clk 0:01:25.7]} 18... Qe7 {[%clk 0:01:25.5]} 19. Bg3 {[%clk 0:01:05.3]}
19... Bf5 {[%clk 0:01:16.8]} 20. hxg5 {[%clk 0:01:02.7]} 20... Qxg5 {[%clk
0:01:15.5]} 21. Qxg5 {[%clk 0:00:47.1]} 21... hxg5 {[%clk 0:01:16.4]} 22. Rfd1
{[%clk 0:00:47.6]} 22... Kg6 {[%clk 0:00:58]} 23. Rd4 {[%clk 0:00:46.3]} 23...
f6 {[%clk 0:00:52.2]} 24. c4 {[%clk 0:00:41.7]} 24... Be6 {[%clk 0:00:46.4]} 25.
c5 {[%clk 0:00:40.8]} 25... Rf7 {[%clk 0:00:44.6]} 26. Rb1 {[%clk 0:00:39.4]}
26... Rh8 {[%clk 0:00:39.8]} 27. f3 {[%clk 0:00:38.4]} 27... Rfh7 {[%clk
0:00:37.1]} 28. Kf2 {[%clk 0:00:38.2]} 28... Bf5 {[%clk 0:00:26.9]} 29. Rb2
{[%clk 0:00:28.1]} 29... Re7 {[%clk 0:00:20.3]} 30. Ra4 {[%clk 0:00:26.8]} 30...
Rh1 {[%clk 0:00:19.7]} 31. Ra6 {[%clk 0:00:24.5]} 31... Bd7 {[%clk 0:00:13.6]}
32. Rxa7 {[%clk 0:00:23.2]} 32... Rc1 {[%clk 0:00:14.2]} 33. Bd6 {[%clk
0:00:22.6]} 33... Rh7 {[%clk 0:00:14.8]} 34. Rbb7 {[%clk 0:00:21.1]} 34... Rc2+
{[%clk 0:00:06.8]} 35. Kg3 {[%clk 0:00:21.1]} 35... Rh1 {[%clk 0:00:06.1]} 36.
Rxd7 {[%clk 0:00:18.3]} 36... Rg1 {[%clk 0:00:06.6]} 37. Rg7+ {[%clk 0:00:15]}
37... Kf5 {[%clk 0:00:07.1]} 38. e4+ {[%clk 0:00:13.8]} 38... dxe4 {[%clk
0:00:07.9]} 39. fxe4+ {[%clk 0:00:14.7]} 39... Kxe4 {[%clk 0:00:08.6]} 40. Rge7+
{[%clk 0:00:11.4]} 40... Kf5 {[%clk 0:00:09]} 41. Kf3 {[%clk 0:00:07.5]} 41...
Rgxg2 {[%clk 0:00:07.4]} 42. Ke3 {[%clk 0:00:07.4]} 42... Rge2+ {[%clk
0:00:07.6]} 43. Kd3 {[%clk 0:00:07.5]} 43... Red2+ {[%clk 0:00:08.2]} 44. Ke3
{[%clk 0:00:07.2]} 44... Re2+ {[%clk 0:00:08.8]} 45. Kd3 {[%clk 0:00:07.2]}
45... Red2+ {[%clk 0:00:08.3]} 46. Ke3 {[%clk 0:00:07.1]} 46... Rh2 {[%clk
0:00:08.4]} 47. Bxh2 {[%clk 0:00:06.4]} 47... Rxh2 {[%clk 0:00:08.5]} 48. Rec7
{[%clk 0:00:06.4]} 48... g4 {[%clk 0:00:07.4]} 49. Rxc6 {[%clk 0:00:06.5]} 49...
g3 {[%clk 0:00:08]} 50. Rf7 {[%clk 0:00:06.4]} 50... Rxa2 {[%clk 0:00:02.1]} 51.
Rcxf6+ {[%clk 0:00:05.7]} 51... Kg4 {[%clk 0:00:03]} 52. Rg6+ {[%clk 0:00:05.6]}
52... Kh3 {[%clk 0:00:03.7]} 53. Rh7+ {[%clk 0:00:05.3]} 53... Kg2 {[%clk
0:00:03.7]} 54. Rhg7 {[%clk 0:00:06.2]} 54... Ra3+ {[%clk 0:00:03.9]} 55. Kd4
{[%clk 0:00:06.7]} 55... Kf2 {[%clk 0:00:02.2]} 56. Rxg3 {[%clk 0:00:06.3]} 1-0

[Event "*** Titled Tuesday Blitz"]
[Site "Chess.com"]
[Date "2020.05.19"]
[Round "2"]
[White "joppie2"]
[Black "Chessialist"]
[Result "1-0"]
[WhiteElo "2908"]
[BlackElo "2553"]
[TimeControl "180+1"]
[EndTime "12:19:35 PDT"]
[Termination "joppie2 won by resignation"]

1. e4 {[%clk 0:02:00.1]} 1... e5 {[%clk 0:02:58.7]} 2. Nf3 {[%clk 0:01:58.5]}
2... Nc6 {[%clk 0:02:58.9]} 3. Bc4 {[%clk 0:01:58]} 3... Be7 {[%clk 0:02:56.8]}
4. c3 {[%clk 0:01:57.9]} 4... Nf6 {[%clk 0:02:56.9]} 5. d3 {[%clk 0:01:58.2]}
5... d6 {[%clk 0:02:56.7]} 6. O-O {[%clk 0:01:58.7]} 6... O-O {[%clk 0:02:57.3]}
7. Re1 {[%clk 0:01:59.1]} 7... Na5 {[%clk 0:02:57.5]} 8. Bb5 {[%clk 0:01:59.1]}
8... a6 {[%clk 0:02:58.2]} 9. Ba4 {[%clk 0:01:59.4]} 9... b5 {[%clk 0:02:59.1]}
10. Bc2 {[%clk 0:01:59.6]} 10... c5 {[%clk 0:03:00]} 11. Nbd2 {[%clk 0:02:00.1]}
11... Re8 {[%clk 0:03:00]} 12. Nf1 {[%clk 0:02:00.7]} 12... Bf8 {[%clk
0:03:00.4]} 13. Ng3 {[%clk 0:02:01.6]} 13... g6 {[%clk 0:03:01]} 14. h3 {[%clk
0:02:02.5]} 14... Bg7 {[%clk 0:03:00.4]} 15. a4 {[%clk 0:02:03.4]} 15... Bd7
{[%clk 0:02:58.6]} 16. Bg5 {[%clk 0:02:03.5]} 16... Qc7 {[%clk 0:02:52]} 17. Qd2
{[%clk 0:02:02.5]} 17... Be6 {[%clk 0:02:50.2]} 18. b4 {[%clk 0:01:58.4]} 18...
cxb4 {[%clk 0:02:49.3]} 19. cxb4 {[%clk 0:01:59.3]} 19... Nc6 {[%clk 0:02:49.6]}
20. Rec1 {[%clk 0:01:50.9]} 20... Qd7 {[%clk 0:02:44.9]} 21. Bh6 {[%clk
0:01:44.7]} 21... Bh8 {[%clk 0:02:38.1]} 22. Ng5 {[%clk 0:01:43.7]} 22... Nd4
{[%clk 0:02:34.1]} 23. Ne2 {[%clk 0:01:32.9]} 23... Nxc2 {[%clk 0:02:27.3]} 24.
Qxc2 {[%clk 0:01:33]} 24... Rec8 {[%clk 0:02:22.2]} 25. Qd1 {[%clk 0:01:32.9]}
25... Rxc1 {[%clk 0:02:21.5]} 26. Nxc1 {[%clk 0:01:33.3]} 26... Rc8 {[%clk
0:01:40.4]} 27. axb5 {[%clk 0:01:31.8]} 27... axb5 {[%clk 0:01:41]} 28. Ne2
{[%clk 0:01:31]} 28... Bg7 {[%clk 0:01:38.4]} 29. Bxg7 {[%clk 0:01:29.5]} 29...
Kxg7 {[%clk 0:01:39.3]} 30. d4 {[%clk 0:01:29.9]} 30... Bc4 {[%clk 0:01:36.8]}
31. Ng3 {[%clk 0:01:27]} 31... h6 {[%clk 0:01:31.1]} 32. Nf3 {[%clk 0:01:27]}
32... Qe7 {[%clk 0:01:25]} 33. Nh4 {[%clk 0:01:26.8]} 33... Kh7 {[%clk
0:01:23.1]} 34. Qd2 {[%clk 0:01:26.2]} 34... exd4 {[%clk 0:01:07.7]} 35. Qxd4
{[%clk 0:01:22.5]} 35... Qe5 {[%clk 0:01:05.7]} 36. Nf3 {[%clk 0:01:21.8]} 36...
Qxd4 {[%clk 0:01:05.5]} 37. Nxd4 {[%clk 0:01:22.7]} 37... Re8 {[%clk 0:01:05.8]}
38. f3 {[%clk 0:01:22.5]} 38... d5 {[%clk 0:01:02.6]} 39. Ra6 {[%clk 0:01:21.9]}
39... Kg7 {[%clk 0:00:56.9]} 40. e5 {[%clk 0:01:14.3]} 40... Rxe5 {[%clk
0:00:55.5]} 41. Kf2 {[%clk 0:01:15.2]} 41... h5 {[%clk 0:00:51.5]} 42. h4 {[%clk
0:01:14.9]} 42... Ne8 {[%clk 0:00:46]} 43. Rb6 {[%clk 0:01:12.4]} 43... Nc7
{[%clk 0:00:45.5]} 44. Rb7 {[%clk 0:01:11.2]} 44... Ne6 {[%clk 0:00:45.1]} 45.
Nc6 {[%clk 0:01:06.4]} 45... Rf5 {[%clk 0:00:32.1]} 46. Nxf5+ {[%clk 0:01:05.7]}
46... gxf5 {[%clk 0:00:33]} 47. Ne5 {[%clk 0:01:06.3]} 47... Kf6 {[%clk
0:00:31.2]} 48. Nxf7 {[%clk 0:01:03]} 48... d4 {[%clk 0:00:31.6]} 49. Nd6 {[%clk
0:01:03.2]} 49... Nf4 {[%clk 0:00:29.3]} 50. Nxb5 {[%clk 0:00:53.8]} 50... d3
{[%clk 0:00:28.4]} 51. Nc3 {[%clk 0:00:52.5]} 51... d2 {[%clk 0:00:28.4]} 52.
Rd7 {[%clk 0:00:50.2]} 52... Nd3+ {[%clk 0:00:28.5]} 53. Ke3 {[%clk 0:00:49.7]}
53... Nxb4 {[%clk 0:00:27.8]} 54. Rxd2 {[%clk 0:00:49.7]} 54... Be6 {[%clk
0:00:27.8]} 55. Kf4 {[%clk 0:00:48.6]} 55... Nc6 {[%clk 0:00:16.9]} 56. Rd6
{[%clk 0:00:48.5]} 56... Ne7 {[%clk 0:00:17.5]} 57. g3 {[%clk 0:00:45.8]} 57...
Ng6+ {[%clk 0:00:18.2]} 58. Ke3 {[%clk 0:00:46.4]} 58... Ke5 {[%clk 0:00:18.9]}
59. Rd4 {[%clk 0:00:46.8]} 59... f4+ {[%clk 0:00:19.2]} 60. gxf4+ {[%clk
0:00:46.8]} 60... Kf6 {[%clk 0:00:19.6]} 61. Ne4+ {[%clk 0:00:47]} 61... Kg7
{[%clk 0:00:18.1]} 62. Ng3 {[%clk 0:00:45.9]} 62... Ne7 {[%clk 0:00:16.9]} 63.
Nxh5+ {[%clk 0:00:45.7]} 63... Kh6 {[%clk 0:00:16.2]} 64. Ng3 {[%clk 0:00:46.1]}
64... Kg7 {[%clk 0:00:16.1]} 65. Kf2 {[%clk 0:00:43.4]} 65... Kf6 {[%clk
0:00:16.3]} 66. Rd6 {[%clk 0:00:42.9]} 66... Nc8 {[%clk 0:00:15.4]} 67. Ra6
{[%clk 0:00:42]} 67... Ke7 {[%clk 0:00:16.3]} 68. f5 {[%clk 0:00:42.2]} 68...
Bd5 {[%clk 0:00:15.3]} 69. f6+ {[%clk 0:00:42]} 69... Kf7 {[%clk 0:00:15.8]} 70.
Ne4 {[%clk 0:00:42.9]} 70... Bc4 {[%clk 0:00:15.4]} 71. Ng5+ {[%clk 0:00:42.6]}
71... Kg6 {[%clk 0:00:15.2]} 72. f7+ {[%clk 0:00:42.8]} 72... Kg7 {[%clk
0:00:15.8]} 73. Rf6 {[%clk 0:00:43.4]} 1-0

[Event "*** Titled Tuesday Blitz"]
[Site "Chess.com"]
[Date "2020.05.19"]
[Round "2"]
[White "FrogMist"]
[Black "temus_galaktionov"]
[Result "1/2-1/2"]
[WhiteElo "2389"]
[BlackElo "2697"]
[TimeControl "180+1"]
[EndTime "12:19:36 PDT"]
[Termination "Game drawn by agreement"]

1. e4 {[%clk 0:03:00.9]} 1... c6 {[%clk 0:03:00.9]} 2. d4 {[%clk 0:03:00.7]}
2... g6 {[%clk 0:03:01.8]} 3. Nc3 {[%clk 0:03:00.1]} 3... Bg7 {[%clk 0:03:02.4]}
4. Be3 {[%clk 0:03:00]} 4... d6 {[%clk 0:03:03]} 5. Qd2 {[%clk 0:02:57.6]} 5...
Nd7 {[%clk 0:03:03.5]} 6. h4 {[%clk 0:02:51.7]} 6... Ngf6 {[%clk 0:03:00.6]} 7.
Be2 {[%clk 0:02:49.9]} 7... e5 {[%clk 0:02:59.5]} 8. h5 {[%clk 0:02:45.5]} 8...
Qa5 {[%clk 0:02:57.7]} 9. hxg6 {[%clk 0:02:34.8]} 9... hxg6 {[%clk 0:02:58.6]}
10. Rxh8+ {[%clk 0:02:34.7]} 10... Bxh8 {[%clk 0:02:59.5]} 11. O-O-O {[%clk
0:02:30.5]} 11... b5 {[%clk 0:02:54.9]} 12. dxe5 {[%clk 0:02:26.5]} 12... dxe5
{[%clk 0:02:55.8]} 13. a3 {[%clk 0:02:12.3]} 13... Bb7 {[%clk 0:02:48.1]} 14.
Kb1 {[%clk 0:02:00.9]} 14... O-O-O {[%clk 0:02:44.1]} 15. Bg5 {[%clk 0:01:38.1]}
15... Bg7 {[%clk 0:02:28.6]} 16. Nf3 {[%clk 0:01:28.1]} 16... Qc7 {[%clk
0:02:28.4]} 17. Qd6 {[%clk 0:01:25.4]} 17... Qxd6 {[%clk 0:02:25.3]} 18. Rxd6
{[%clk 0:01:26.3]} 18... Kc7 {[%clk 0:02:21.9]} 19. Rd1 {[%clk 0:01:19.8]} 19...
Rh8 {[%clk 0:02:21.4]} 20. b4 {[%clk 0:01:16.9]} 20... Ng4 {[%clk 0:02:17.3]}
21. Bh4 {[%clk 0:01:08.2]} 21... a6 {[%clk 0:02:09.9]} 22. Bg3 {[%clk
0:01:08.2]} 22... f5 {[%clk 0:01:52.2]} 23. exf5 {[%clk 0:01:03.7]} 23... gxf5
{[%clk 0:01:53.1]} 24. Nd4 {[%clk 0:01:04.2]} 24... Bf6 {[%clk 0:01:15.8]} 25.
Nxf5 {[%clk 0:00:59]} 25... Nh6 {[%clk 0:01:15.1]} 26. Nd6 {[%clk 0:00:52.2]}
26... Ba8 {[%clk 0:01:09.8]} 27. Nce4 {[%clk 0:00:51.5]} 27... Be7 {[%clk
0:01:09]} 28. c4 {[%clk 0:00:40.3]} 28... bxc4 {[%clk 0:00:46.4]} 29. Nxc4
{[%clk 0:00:36.4]} 29... a5 {[%clk 0:00:47.3]} 30. Nxa5 {[%clk 0:00:35.1]} 30...
Nf5 {[%clk 0:00:42.6]} 31. Bg4 {[%clk 0:00:27.9]} 31... Rf8 {[%clk 0:00:41.7]}
32. Nc4 {[%clk 0:00:20]} 32... c5 {[%clk 0:00:33.3]} 33. Ng5 {[%clk 0:00:17.6]}
33... Kc6 {[%clk 0:00:25.8]} 34. Ne6 {[%clk 0:00:17.3]} 34... Rf6 {[%clk
0:00:23.9]} 35. Nxc5 {[%clk 0:00:15.1]} 35... Nxc5 {[%clk 0:00:20.7]} 36. bxc5
{[%clk 0:00:16]} 36... Kxc5 {[%clk 0:00:21.3]} 37. Nxe5 {[%clk 0:00:16.5]} 37...
Nxg3 {[%clk 0:00:20.6]} 38. Nd7+ {[%clk 0:00:16.5]} 38... Kc4 {[%clk 0:00:19.1]}
39. Nxf6 {[%clk 0:00:17.4]} 39... Bxf6 {[%clk 0:00:17.1]} 40. fxg3 {[%clk
0:00:16.8]} 40... Be4+ {[%clk 0:00:17.1]} 41. Kc1 {[%clk 0:00:17.2]} 41... Kc3
{[%clk 0:00:16.7]} 42. Rf1 {[%clk 0:00:14]} 42... Bg5+ {[%clk 0:00:16]} 43. Kd1
{[%clk 0:00:14.6]} 43... Bc2+ {[%clk 0:00:16.3]} 44. Ke2 {[%clk 0:00:15]} 44...
Bd3+ {[%clk 0:00:16]} 45. Kf2 {[%clk 0:00:15.1]} 45... Bxf1 {[%clk 0:00:16.9]}
46. Kxf1 {[%clk 0:00:15.8]} 46... Kb3 {[%clk 0:00:17.3]} 47. Kf2 {[%clk
0:00:16.7]} 47... Kxa3 {[%clk 0:00:17.7]} 48. Kf3 {[%clk 0:00:17.3]} 48... Kb4
{[%clk 0:00:17.8]} 49. Be6 {[%clk 0:00:18.2]} 49... Kc5 {[%clk 0:00:16.7]} 50.
Ke4 {[%clk 0:00:19.1]} 50... Kd6 {[%clk 0:00:15.9]} 51. Kf5 {[%clk 0:00:19.6]}
51... Bc1 {[%clk 0:00:15.6]} 52. g4 {[%clk 0:00:20.1]} 52... Ke7 {[%clk
0:00:16.1]} 53. Ba2 {[%clk 0:00:19.1]} 53... Kf8 {[%clk 0:00:17]} 54. Kg6 {[%clk
0:00:18.8]} 54... Bb2 {[%clk 0:00:15.3]} 55. g5 {[%clk 0:00:18.8]} 55... Bg7
{[%clk 0:00:15.8]} 56. Kh7 {[%clk 0:00:18.5]} 56... Ba1 {[%clk 0:00:16.7]} 57.
g6 {[%clk 0:00:18.9]} 57... Bg7 {[%clk 0:00:17.6]} 58. Bf7 {[%clk 0:00:13.5]}
58... Ba1 {[%clk 0:00:18.5]} 59. Kh6 {[%clk 0:00:14.4]} 59... Bg7+ {[%clk
0:00:17.5]} 60. Kg5 {[%clk 0:00:15.3]} 60... Ba1 {[%clk 0:00:15.9]} 61. Kf5
{[%clk 0:00:16.2]} 61... Kg7 {[%clk 0:00:14.4]} 62. Be8 {[%clk 0:00:14.9]} 62...
Bb2 {[%clk 0:00:15.3]} 63. g4 {[%clk 0:00:14.6]} 63... Bc1 {[%clk 0:00:16.2]}
64. g5 {[%clk 0:00:12.4]} 64... Bd2 {[%clk 0:00:17.1]} 65. Ke6 {[%clk
0:00:11.5]} 1/2-1/2

[Event "*** Titled Tuesday Blitz"]
[Site "Chess.com"]
[Date "2020.05.19"]
[Round "2"]
[White "cukin84"]
[Black "WPWPWP-2015"]
[Result "0-1"]
[WhiteElo "2126"]
[BlackElo "2405"]
[TimeControl "180+1"]
[EndTime "12:19:38 PDT"]
[Termination "WPWPWP-2015 won by checkmate"]

1. e4 {[%clk 0:03:00.9]} 1... c5 {[%clk 0:02:55.3]} 2. Nc3 {[%clk 0:03:00.2]}
2... d6 {[%clk 0:02:53.8]} 3. f4 {[%clk 0:02:59.4]} 3... g6 {[%clk 0:02:52.6]}
4. Nf3 {[%clk 0:02:58.7]} 4... Bg7 {[%clk 0:02:52.3]} 5. d3 {[%clk 0:02:57.1]}
5... e6 {[%clk 0:02:51]} 6. g3 {[%clk 0:02:57.3]} 6... Ne7 {[%clk 0:02:50.6]} 7.
Bg2 {[%clk 0:02:57.5]} 7... O-O {[%clk 0:02:48.9]} 8. O-O {[%clk 0:02:57.5]}
8... Bd7 {[%clk 0:02:45.3]} 9. Qe1 {[%clk 0:02:48.3]} 9... Nbc6 {[%clk
0:02:43.2]} 10. Nd1 {[%clk 0:02:47.2]} 10... f5 {[%clk 0:02:36.4]} 11. Ne3
{[%clk 0:02:39]} 11... Nd4 {[%clk 0:02:30.3]} 12. c3 {[%clk 0:02:32]} 12...
Nxf3+ {[%clk 0:02:27.2]} 13. Bxf3 {[%clk 0:02:31.9]} 13... Bc6 {[%clk
0:02:26.6]} 14. Nc2 {[%clk 0:02:23.2]} 14... Qd7 {[%clk 0:02:23.6]} 15. exf5
{[%clk 0:02:14.2]} 15... gxf5 {[%clk 0:02:15.1]} 16. Be3 {[%clk 0:02:01.8]}
16... Rae8 {[%clk 0:02:13.1]} 17. Qf2 {[%clk 0:02:00.7]} 17... Nd5 {[%clk
0:02:07.4]} 18. Bg2 {[%clk 0:01:57.8]} 18... Nf6 {[%clk 0:01:58.5]} 19. h3
{[%clk 0:01:55.5]} 19... Nd5 {[%clk 0:01:52]} 20. d4 {[%clk 0:01:50.2]} 20... c4
{[%clk 0:01:49.4]} 21. Bxd5 {[%clk 0:01:42.2]} 21... Bxd5 {[%clk 0:01:45.2]} 22.
Rae1 {[%clk 0:01:36.1]} 22... Qf7 {[%clk 0:01:38.5]} 23. Kh2 {[%clk 0:01:31.2]}
23... Bf6 {[%clk 0:01:36]} 24. Rg1 {[%clk 0:01:30.5]} 24... Kh8 {[%clk
0:01:32.3]} 25. g4 {[%clk 0:01:29.2]} 25... b5 {[%clk 0:01:27.4]} 26. g5 {[%clk
0:01:28.9]} 26... Bg7 {[%clk 0:01:25.8]} 27. Qh4 {[%clk 0:01:23.1]} 27... Qg6
{[%clk 0:01:18]} 28. Nb4 {[%clk 0:01:16.9]} 28... Be4 {[%clk 0:01:15.4]} 29. a3
{[%clk 0:01:11.4]} 29... e5 {[%clk 0:01:12.5]} 30. dxe5 {[%clk 0:01:08.2]} 30...
dxe5 {[%clk 0:01:12]} 31. Rd1 {[%clk 0:01:08.3]} 31... exf4 {[%clk 0:01:03.1]}
32. Bxf4 {[%clk 0:01:05.6]} 32... Bf3 {[%clk 0:00:39.5]} 33. Rd6 {[%clk
0:01:04.2]} 33... Re6 {[%clk 0:00:38.5]} 34. Rxe6 {[%clk 0:01:01.9]} 34... Qxe6
{[%clk 0:00:38]} 35. g6 {[%clk 0:00:47.3]} 35... Qe2+ {[%clk 0:00:36.8]} 36. Kg3
{[%clk 0:00:47.4]} 36... h5 {[%clk 0:00:30.7]} 37. Na2 {[%clk 0:00:18.4]} 37...
Rf6 {[%clk 0:00:29]} 38. Qg5 {[%clk 0:00:18.1]} 38... Bc6 {[%clk 0:00:19.6]} 39.
Nc1 {[%clk 0:00:18.1]} 39... Qf3+ {[%clk 0:00:14.2]} 40. Kh4 {[%clk 0:00:18.2]}
40... Qf2+ {[%clk 0:00:07.7]} 41. Bg3 {[%clk 0:00:16.9]} 41... Qf3 {[%clk
0:00:05.8]} 42. Qxh5+ {[%clk 0:00:16.4]} 42... Qxh5+ {[%clk 0:00:05.6]} 43. Kxh5
{[%clk 0:00:17.3]} 43... f4 {[%clk 0:00:06.1]} 44. Bh4 {[%clk 0:00:17.4]} 44...
Bf3+ {[%clk 0:00:05.3]} 45. Kg5 {[%clk 0:00:16.1]} 45... Be4 {[%clk 0:00:05.5]}
46. Re1 {[%clk 0:00:15.7]} 46... Bxg6 {[%clk 0:00:03.8]} 47. Re7 {[%clk
0:00:14]} 47... f3 {[%clk 0:00:02.9]} 48. Rb7 {[%clk 0:00:11.1]} 48... Kh7
{[%clk 0:00:03.1]} 49. Kg4 {[%clk 0:00:10]} 49... f2 {[%clk 0:00:02.9]} 50. Bxf6
{[%clk 0:00:09.7]} 50... f1=Q {[%clk 0:00:01.4]} 51. Rxg7+ {[%clk 0:00:09.9]}
51... Kh6 {[%clk 0:00:01.8]} 52. h4 {[%clk 0:00:09]} 52... Qd1+ {[%clk
0:00:01.7]} 53. Kf4 {[%clk 0:00:08.3]} 53... Qf1+ {[%clk 0:00:01.8]} 54. Ke5
{[%clk 0:00:08.5]} 54... Qf5+ {[%clk 0:00:01.7]} 55. Kd6 {[%clk 0:00:08.5]}
55... Qxf6+ {[%clk 0:00:02.4]} 56. Kd5 {[%clk 0:00:08.6]} 56... Kxg7 {[%clk
0:00:02.6]} 57. Ne2 {[%clk 0:00:06.9]} 57... Bf7+ {[%clk 0:00:03.5]} 58. Kc5
{[%clk 0:00:07.1]} 58... Qe5+ {[%clk 0:00:03.6]} 59. Kb4 {[%clk 0:00:07.1]}
59... Qxe2 {[%clk 0:00:04.5]} 60. Ka5 {[%clk 0:00:07.2]} 60... Qd3 {[%clk
0:00:04.9]} 61. b4 {[%clk 0:00:07.5]} 61... Be8 {[%clk 0:00:05.1]} 62. Ka6
{[%clk 0:00:07.7]} 62... Qd6+ {[%clk 0:00:05.2]} 63. Ka5 {[%clk 0:00:07.5]}
63... Qb6# {[%clk 0:00:05.3]} 0-1

[Event "*** Titled Tuesday Blitz"]
[Site "Chess.com"]
[Date "2020.05.19"]
[Round "2"]
[White "mirandamikadze"]
[Black "frankshar"]
[Result "1/2-1/2"]
[WhiteElo "1982"]
[BlackElo "2357"]
[TimeControl "180+1"]
[EndTime "12:19:38 PDT"]
[Termination "Game drawn by repetition"]

1. e4 {[%clk 0:03:00.9]} 1... c6 {[%clk 0:02:59.8]} 2. d4 {[%clk 0:02:57.9]}
2... d5 {[%clk 0:03:00.7]} 3. e5 {[%clk 0:02:57.1]} 3... Bf5 {[%clk 0:03:00.2]}
4. Bd3 {[%clk 0:02:57]} 4... Bxd3 {[%clk 0:02:59.3]} 5. Qxd3 {[%clk 0:02:56.8]}
5... e6 {[%clk 0:03:00.2]} 6. Nf3 {[%clk 0:02:55.7]} 6... Qa5+ {[%clk
0:02:59.9]} 7. Nbd2 {[%clk 0:02:53.3]} 7... Qa6 {[%clk 0:02:59.4]} 8. c4 {[%clk
0:02:53.2]} 8... Nd7 {[%clk 0:02:53.2]} 9. b3 {[%clk 0:02:52.8]} 9... Ne7 {[%clk
0:02:49]} 10. O-O {[%clk 0:02:52.2]} 10... Ng6 {[%clk 0:02:48.4]} 11. Rd1 {[%clk
0:02:48.2]} 11... Be7 {[%clk 0:02:47.2]} 12. Qc2 {[%clk 0:02:36.4]} 12... O-O
{[%clk 0:02:41.6]} 13. g3 {[%clk 0:02:30.4]} 13... Rac8 {[%clk 0:02:35.1]} 14.
Bb2 {[%clk 0:02:09.6]} 14... c5 {[%clk 0:02:12.9]} 15. h4 {[%clk 0:01:48.5]}
15... cxd4 {[%clk 0:01:48]} 16. Bxd4 {[%clk 0:01:47]} 16... Rfd8 {[%clk
0:01:47.1]} 17. h5 {[%clk 0:01:45.7]} 17... Ngf8 {[%clk 0:01:45.2]} 18. h6
{[%clk 0:01:45.5]} 18... g6 {[%clk 0:01:41.5]} 19. Qd3 {[%clk 0:01:41.2]} 19...
dxc4 {[%clk 0:01:34.4]} 20. Nxc4 {[%clk 0:01:40]} 20... Nb6 {[%clk 0:01:31.9]}
21. Nxb6 {[%clk 0:01:37.1]} 21... Qxd3 {[%clk 0:01:30.4]} 22. Rxd3 {[%clk
0:01:35.8]} 22... axb6 {[%clk 0:01:30.4]} 23. Rad1 {[%clk 0:01:34.5]} 23... Nd7
{[%clk 0:01:16.5]} 24. R3d2 {[%clk 0:01:09.1]} 24... Kf8 {[%clk 0:00:55.7]} 25.
Kf1 {[%clk 0:01:06.3]} 25... Ke8 {[%clk 0:00:53]} 26. Be3 {[%clk 0:01:03.3]}
26... Nc5 {[%clk 0:00:46.2]} 27. Rxd8+ {[%clk 0:01:02.2]} 27... Rxd8 {[%clk
0:00:45.1]} 28. Rxd8+ {[%clk 0:00:54.9]} 28... Kxd8 {[%clk 0:00:45.4]} 29. Ke2
{[%clk 0:00:50.4]} 29... Kd7 {[%clk 0:00:40.8]} 30. Nd4 {[%clk 0:00:46.3]} 30...
f6 {[%clk 0:00:27.2]} 31. exf6 {[%clk 0:00:45]} 31... Bxf6 {[%clk 0:00:26.9]}
32. f3 {[%clk 0:00:45.3]} 32... Be5 {[%clk 0:00:15.7]} 33. g4 {[%clk 0:00:44.3]}
33... Kd6 {[%clk 0:00:11.3]} 34. Nb5+ {[%clk 0:00:42.4]} 34... Kc6 {[%clk
0:00:11.4]} 35. Nd4+ {[%clk 0:00:39.4]} 35... Bxd4 {[%clk 0:00:11.6]} 36. Bxd4
{[%clk 0:00:39.1]} 36... Nd7 {[%clk 0:00:12.2]} 37. Kd3 {[%clk 0:00:38.2]} 37...
Kd5 {[%clk 0:00:12.4]} 38. b4 {[%clk 0:00:36.6]} 38... e5 {[%clk 0:00:09.7]} 39.
Bc3 {[%clk 0:00:34.5]} 39... b5 {[%clk 0:00:10]} 40. a3 {[%clk 0:00:33.8]} 40...
Nf6 {[%clk 0:00:08.4]} 41. Kc2 {[%clk 0:00:31]} 41... Nd7 {[%clk 0:00:07.8]} 42.
Kb3 {[%clk 0:00:30.2]} 42... Nb6 {[%clk 0:00:05.1]} 43. Bb2 {[%clk 0:00:28.7]}
43... Nc4 {[%clk 0:00:04.5]} 44. Bc1 {[%clk 0:00:26.4]} 44... Kd4 {[%clk
0:00:03.6]} 45. a4 {[%clk 0:00:25.5]} 45... bxa4+ {[%clk 0:00:03.5]} 46. Kxa4
{[%clk 0:00:25.3]} 46... e4 {[%clk 0:00:02.5]} 47. fxe4 {[%clk 0:00:24.9]} 47...
Kxe4 {[%clk 0:00:03.4]} 48. Kb5 {[%clk 0:00:25.1]} 48... Ne5 {[%clk 0:00:03.1]}
49. g5 {[%clk 0:00:24.5]} 49... Nd7 {[%clk 0:00:03]} 50. Bd2 {[%clk 0:00:20.4]}
50... Kd5 {[%clk 0:00:02.6]} 51. Bc1 {[%clk 0:00:19.8]} 51... Kd4 {[%clk
0:00:03]} 52. Bd2 {[%clk 0:00:19.1]} 52... Kd5 {[%clk 0:00:03.3]} 53. Bc1 {[%clk
0:00:19.3]} 53... Kd6 {[%clk 0:00:03.7]} 54. Bd2 {[%clk 0:00:18.9]} 54... Kc7
{[%clk 0:00:01.9]} 55. Bf4+ {[%clk 0:00:18.7]} 55... Kc8 {[%clk 0:00:01.6]} 56.
Kc4 {[%clk 0:00:18.4]} 56... Kd8 {[%clk 0:00:02]} 57. Kd5 {[%clk 0:00:18.4]}
57... Ke7 {[%clk 0:00:02.5]} 58. Bd6+ {[%clk 0:00:16.5]} 58... Kf7 {[%clk
0:00:02.7]} 59. Bf4 {[%clk 0:00:15.2]} 59... Ke7 {[%clk 0:00:02.9]} 60. Bd6+
{[%clk 0:00:15.2]} 60... Kf7 {[%clk 0:00:03.4]} 61. Bf4 {[%clk 0:00:15.5]} 61...
Ke7 {[%clk 0:00:03.9]} 1/2-1/2